Workbook

Sheet 1. Forside
A1: Hedensted Spildevand
D8: Bilag A
D13: Indholdsfortegnelse
C16: Fane nr. 2 | D16: Samlet prisloft
C17: Fane nr. 3 | D17: Driftsomkostninger
C18: Fane nr. 4 | D18: Historiske investeringer
C19: Fane nr. 5 | D19: Gennemførte investeringer
C20: Fane nr. 6 | D20: Korrektion investeringer
C21: Fane nr. 7 | D21: Planlagte investeringer
C22: Fane nr. 8 | D22: 1:1 omkostninger
C23: Fane nr. 9 | D23: Miljø- og servicemål
C24: Fane nr. 10 | D24: Klimatilpasning
C25: Fane nr. 11 | D25: Nettofinansielle poster
C26: Fane nr. 12 | D26: Over- eller underdækning
C27: Fane nr. 13 | D27: Kontrol med indtægtsrammen og oversigt over ekstraordinære effektiviseringsgevinster

Sheet 2. Samlet prisloft
A1: ='1. Forside'!A1 -> Hedensted Spildevand
B4: Fane 2. Samlet prisloft for 2015
B6: Driftsomkostninger
B7: Driftsomkostninger i prisloftet for 2014 | C7: ='3. Driftsomkostninger'!C21 -> 28689473.7 | D7: kr.
B8: Bortfald af væsentlige omkostninger | C8: =-'3. Driftsomkostninger'!C17 -> 0 | D8: kr.
B9: Korrektion for prisudviklingen 2014-2015 | C9: ='3. Driftsomkostninger'!C23 -> 22951.57896 | D9: kr.
B10: Forhøjelse til effektivt niveau iht. benchmarkingen | C10: ='3. Driftsomkostninger'!C29 -> 0 | D10: kr.
B11: Korrektion for generelt effektiviseringskrav | C11: =-'3. Driftsomkostninger'!C35 -> -126233.6843 | D11: kr.
B12: Korrektion for individuelt effektiviseringskrav | C12: =-'3. Driftsomkostninger'!C44 -> 0 | D12: kr.
B13: Driftsomkostninger i alt | C13: =SUM(C7:C12) -> 28586191.6 | D13: kr. | E13: =C13 -> 28586191.6 | F13: kr.
B14: Investeringer
B15: Tillæg for historiske investeringer | C15: ='4. Historiske investeringer'!C9 -> 48955335.55 | D15: kr.
B16: Tillæg for gennemførte investeringer i 2011-2013 | C16: ='5. Gennemførte investeringer'!F46 -> 8398858.817 | D16: kr.
B17: Korrektion af tillæg for planlagte investeringer vedrørende 2013 | C17: ='6. Korrektion investeringer'!C10 -> 1566958.9 | D17: kr.
B18: Tillæg for planlagte investeringer i 2014 og 2015 | C18: ='7. Planlagte investeringer'!F44 -> 1181520 | D18: kr.
B19: Investeringstillæg i alt | C19: =SUM(C15:C18) -> 60102673.27 | D19: kr. | E19: =C19 -> 60102673.27 | F19: kr.
B20: Øvrige omkostninger mv.
B21: Tillæg for 1:1 omkostninger i 2015 | C21: ='8. 1-1 omkostninger'!C11 -> 1419700 | D21: kr.
B22: Tillæg vedr. revisorerklæringer og DANVA/FVD-kontingent | C22: ='8. 1-1 omkostninger'!C19 -> 150000 | D22: kr.
B23: Korrektion ift. faktiske 1:1 omkostninger i 2013 | C23: ='8. 1-1 omkostninger'!C25 -> 116465 | D23: kr.
B24: Tillæg for driftsomkostninger til miljø- og servicemål i 2015 | C24: ='9. Miljø- og servicemål'!C9 -> 2115000 | D24: kr.
B25: Korrektion ift. faktiske driftsomkostninger til miljø- og servicemål i 2013 | C25: ='9. Miljø- og servicemål'!C16 -> -146649 | D25: kr.
B26: Tillæg for driftsomkostninger til medfinansiering af klimatilpasningsprojekter i 2015 | C26: ='10. Klimatilpasning'!C9 -> 0 | D26: kr.
B27: Korrektion ift. faktiske omkostninger til medfinansiering af klimatilpasningsprojekter i 2013 | C27: ='10. Klimatilpasning'!C16 -> 0 | D27: kr.
B28: Tillæg/fradrag for nettofinansielle poster i 2015 | C28: ='11. Nettofinansielle poster'!C9 -> 1310000 | D28: kr.
B29: Korrektion ift. faktiske nettofinansielle poster i 2013 | C29: ='11. Nettofinansielle poster'!C16 -> 181722 | D29: kr.
B30: Øvrige omkostninger mv. i alt | C30: =SUM(C21:C29) -> 5146238 | D30: kr. | E30: =C30 -> 5146238 | F30: kr.
B31: Historisk over- eller underdækning
B32: Tillæg/fradrag for over- eller underdækning til og med 2010 | C32: ='12. Over- eller underdækning'!C11 -> -4898935.249 | D32: kr. | E32: =C32 -> -4898935.249 | F32: kr.
B33: Korrektion i forhold til tidligere indtægtsramme
B34: Korrektion for overholdelse af indtægtsramme i prisloft 2013 | C34: ='13. Kontrol med indtægtsrammen'!E27 -> -1708435.323 | D34: kr. | E34: =C34 -> -1708435.323 | F34: kr.
B35: Samlet prisloft
B36: Indtægtsramme i 2015 | E36: =SUM(E13:E34) -> 87227732.3 | F36: kr.
B37: Debiteret vandmængde i 2013 | E37: 1782974 | F37: m3
B38: Prisloft 2015 | E38: =E36/E37 -> 48.92260476 | F38: kr./m3

Sheet 3. Driftsomkostninger
A1: ='1. Forside'!A1 -> Hedensted Spildevand
B4: Fane 3. Driftsomkostninger
B6: Driftsomkostningerne i prisloftet for 2014
B7: Korrigerede driftsomkostninger i prisloftet for 2013 (DOiPL 2013) | C7: 31702567 | D7: kr.
B8: Prisfremskrivning 1,5 pct. | C8: =0.015*SUM(C7:C7) -> 475538.505 | D8: kr.
B9: Generelt effektiviseringskrav (0 pct.) | C9: 0 | D9: kr.
B10: Individuelt effektiviseringskrav | C10: -599414 | D10: kr.
B11: Bortfald af midlertidigt tillæg iht. § 8, stk. 5 (inkl. prisfremskrivning) | C11: =-1.015*2846520 -> -2889217.8 | D11: kr.
B12: Driftsomkostningerne i prisloftet for 2014 (DOiPL 2014) (korrigeret for bortfald af midlertidigt tillæg) | C12: =SUM(C7:C11) -> 28689473.7 | D12: kr.
B15: Korrektion for forventet bortfald af væsentlige omkostninger
B16: Selskabets indberettede bortfald af væsentlige omkostninger inden 2015 | C16: 0 | D16: kr.
B17: Korrektion for forventet bortfald | C17: =SUM(C16:C16) -> 0 | D17: kr.
B20: Korrektion for prisudviklingen fra 2014-2015
B21: Driftsomkostningerne i prisloftet for 2014 | C21: =C12-C17 -> 28689473.7 | D21: kr.
B22: Prisudvikling 2014 - 2015 | C22: 0.08 | D22: pct.
B23: Korrektion for prisudvikling | C23: =C21*(C22/100) -> 22951.57896 | D23: kr.
B26: Eventuel forhøjelse til effektivt niveau iht. benchmarkingen
B27: Selskabets effektive driftsomkostninger iht. benchmarkingen | C27: 24443433 | D27: kr.
B28: Selskabets pristalskorrigerede driftsomkostninger i 2015-niveau | C28: =C21+C23 -> 28712425.28 | D28: kr.
B29: Eventuel forhøjelse til effektivt niveau | C29: =IF(C28>C27,0,C27-C28) -> 0 | D29: kr.
B32: Korrektion for generelt effektiviseringskrav
B33: Driftsomkostningerne i prisloftet for 2014 | C33: =C21 -> 28689473.7 | D33: kr.
B34: Generelt effektiviseringskrav | C34: 0.44 | D34: pct.
B35: Endeligt generelt effektiviseringskrav | C35: =C33*(C34/100) -> 126233.6843 | D35: kr.
B38: Korrektion for individuelt effektiviseringskrav
B39: Rå effektiviseringspotentiale | C39: 4372276 | D39: kr.
B40: Effektiviseringspotentiale efter eventuel korrektion for særlige forhold | C40: 4246042 | D40: kr.
B41: Effektiviseringspotentiale efter forsigtighedshensyn | C41: 390177 | D41: kr.
B42: Effektiviseringspotentiale efter eventuel korrektion for sammensætning af signifikante costdrivere | C42: 390177 | D42: kr.
B43: Umiddelbart effektiviseringskrav | C43: =C42/4 -> 97544.25 | D43: kr.
B44: Endeligt individuelt effektiviseringskrav | C44: =IF(C43>0.05*C21,0.05*C21,IF(C43<0.01*C21,0,C43)) -> 0 | D44: kr.

Sheet 4. Historiske investeringer
A1: ='3. Driftsomkostninger'!A1 -> Hedensted Spildevand
B4: Fane 4. Historiske investeringer
B6: Tillæg for historiske investeringer
B7: Værdi af selskabets materielle anlægsaktiver pr. 1. januar 2010 | C7: 2255862687 | D7: kr.
B8: Den årlige standardafskrivning på de materielle anlægsaktiver iht. POLKA | C8: 48955335.55 | D8: kr.
B9: Tillæg i alt i 2015 | C9: =C8 -> 48955335.55 | D9: kr.

Sheet 5. Gennemførte investeringer
A1: ='4. Historiske investeringer'!A1 -> Hedensted Spildevand
B4: Fane 5. Gennemførte investeringer i 2010 - 2013
B6: Tillæg for gennemførte investeringer i 2013
B7: Beskrivelse af investeringen | C7: Årstal | D7: Std. levetid (år) | E7: Anskaffelses-pris (kr.) | F7: Afskrivning
B8: Beluftningstanke, SRO | C8: 2013 | D8: 10 | E8: 1259720 | F8: =E8/D8 -> 125972 | G8: kr.
B9: Pumpeinstallation Miljøklasse A (100-300 l/s) - SRO | C9: 2013 | D9: 10 | E9: 675791 | F9: =E9/D9 -> 67579.1 | G9: kr.
B10: Andre bygninger (tekniske installationer, målere mv.) | C10: 2013 | D10: 75 | E10: 194997 | F10: 2599.96 | G10: kr.
B11: Beluftningstanke, Mek/EL | C11: 2013 | D11: 20 | E11: 266554 | F11: 13327.7 | G11: kr.
B12: Brønde | C12: 2013 | D12: 75 | E12: 460380 | F12: 6138.4 | G12: kr.
B13: Efterklaringstanke, Mek/El | C13: 2013 | D13: 20 | E13: 17030167 | F13: 851508.35 | G13: kr.
B14: Efterklaringstanke, SRO | C14: 2013 | D14: 10 | E14: 2319283 | F14: 231928.3 | G14: kr.
B15: Indløb med riste, Mek/EL | C15: 2013 | D15: 20 | E15: 4556562 | F15: 227828.1 | G15: kr.
B16: Indløb med riste, SRO | C16: 2013 | D16: 10 | E16: 198796 | F16: 19879.6 | G16: kr.
B17: Pumpestationer m. overbygning (< 20 m2), SRO | C17: 2013 | D17: 10 | E17: 71856 | F17: 7185.6 | G17: kr.
B18: Installationer "mekaniske riste og SRO" Miljøklasse A. (7-20 m2) - Mek/EL | C18: 2013 | D18: 20 | E18: 780316 | F18: 39015.8 | G18: kr.
B19: Installationer "mekaniske riste og SRO" Miljøklasse A. (7-20 m2) - SRO | C19: 2013 | D19: 10 | E19: 520210 | F19: 52021 | G19: kr.
B20: Jordbassin Klasse A | C20: 2013 | D20: 50 | E20: 1021896 | F20: 20437.92 | G20: kr.
B21: Jordbassin Klasse B | C21: 2013 | D21: 50 | E21: 932430 | F21: 18648.6 | G21: kr.
B22: Ledningsnet > Ø 1600 mm (rørbassiner og transportledninger) | C22: 2013 | D22: 75 | E22: 548305 | F22: 7310.733333 | G22: kr.
B23: Ledningsnet = Ø 200 mm | C23: 2013 | D23: 75 | E23: 8871332 | F23: 118284.4267 | G23: kr.
B24: Pumpestationer i brønde (< 6,25 m2), Konstruktioner | C24: 2013 | D24: 50 | E24: 1571135 | F24: 31422.7 | G24: kr.
B25: Pumpestationer i brønde (< 6,25 m2), Mek/EL | C25: 2013 | D25: 20 | E25: 1161311 | F25: 58065.55 | G25: kr.
B26: Pumpestationer i brønde (< 6,25 m2), SRO | C26: 2013 | D26: 10 | E26: 135456 | F26: 13545.6 | G26: kr.
B27: Pumpestationer i underjordiske bygværker ( | C27: 2013 | D27: 20 | E27: 386647 | F27: 19332.35 | G27: kr.
B28: Pumpestationer m. overbygning (< 20 m2), Mek/EL | C28: 2013 | D28: 20 | E28: 1599992 | F28: 79999.6 | G28: kr.
B29: Slutafvanding, slam - højteknologisk (centrifuger), Mek/El | C29: 2013 | D29: 20 | E29: 1178686 | F29: 58934.3 | G29: kr.
B30: Slutafvanding, slam - højteknologisk (centrifuger), SRO | C30: 2013 | D30: 10 | E30: 100314 | F30: 10031.4 | G30: kr.
B31: Slutdisponering, slam - lavteknologisk (slammineralisering), Konstruktioner | C31: 2013 | D31: 60 | E31: 403215 | F31: 6720.25 | G31: kr.
B32: Slutdisponering, slam - lavteknologisk (slammineralisering), Mek/EL | C32: 2013 | D32: 20 | E32: 70849 | F32: 3542.45 | G32: kr.
B33: Strømpeforing = Ø 200 mm | C33: 2013 | D33: 50 | E33: 243992 | F33: 4879.84 | G33: kr.
B34: Strømpeforing Ø 1000 mm < Ledningsnet = Ø 1200 mm | C34: 2013 | D34: 50 | E34: 514299 | F34: 10285.98 | G34: kr.
B35: Strømpeforing Ø 200 mm < Ledningsnet = Ø 500 mm | C35: 2013 | D35: 50 | E35: 157802 | F35: 3156.04 | G35: kr.
B36: Strømpeforing Ø 500 mm < Ledningsnet = Ø 800 mm | C36: 2013 | D36: 50 | E36: 554633 | F36: 11092.66 | G36: kr.
B37: Tryksatte minipumpestationer (husstandssystemer) | C37: 2013 | D37: 30 | E37: 1593736 | F37: 53124.53333 | G37: kr.
B38: Ø 200 mm < Ledningsnet = Ø 500 mm | C38: 2013 | D38: 75 | E38: 521116 | F38: 6948.213333 | G38: kr.
B39: Ø 500 mm < Ledningsnet = Ø 800 mm | C39: 2013 | D39: 75 | E39: 112147 | F39: 1495.293333 | G39: kr.
B40: Gulvvasker | C40: 2013 | D40: 10 | E40: 137436 | F40: 13743.6 | G40: kr.
B41: Sakslift | C41: 2013 | D41: 10 | E41: 39000 | F41: 3900 | G41: kr.
B42: Lastbil kran | C42: 2013 | D42: 7 | E42: 119000 | F42: 17000 | G42: kr.
B43: Miniged | C43: 2013 | D43: 10 | E43: 100000 | F43: 10000 | G43: kr.
B44: Tillæg for 2013 | F44: =SUM(F8:F43) -> 2226885.95 | G44: kr.
B45: Tillæg for 2010 - 2012 | F45: 6171972.867 | G45: kr.
B46: Samlet tillæg for gennemførte investeringer | F46: =F44+F45 -> 8398858.817 | G46: kr.

Sheet 6. Korrektion investeringer
A1: ='5. Gennemførte investeringer'!A1 -> Hedensted Spildevand
B4: Fane 6. Korrektion af tillæg for planlagte investeringer
B6: Korrektion af tillæg for planlagte investeringer vedr. 2013
B7: Tillæg for planlagte investeringer i 2013 i prisloft 2013 | C7: 1871333 | D7: kr.
B8: Tillæg for planlagte investeringer i 2013 i prisloft 2014 | C8: 1015480 | D8: kr.
B9: Selskabets faktiske afskrivninger på gennemførte investeringer i 2013 | C9: ='5. Gennemførte investeringer'!F44 -> 2226885.95 | D9: kr.
B10: Korrektion af tillæg for planlagte investeringer vedr. 2013 | C10: =C9-C7+C9-C8 -> 1566958.9 | D10: kr.

Sheet 7. Planlagte investeringer
A1: ='6. Korrektion investeringer'!A1 -> Hedensted Spildevand
B4: Fane 7. Planlagte investeringer
B6: Tillæg for planlagte investeringer i 2014 og 2015
B7: Beskrivelse af investeringen | C7: Årstal | D7: Std. levetid (år) | E7: Anskaffelses-pris (kr.) | F7: Afskrivning
B8: Ledningsnet = Ø 200 mm | C8: 2014 | D8: 75 | E8: 37500 | F8: =E8/D8 -> 500 | G8: kr.
B9: Ledningsnet = Ø 200 mm | C9: 2014 | D9: 75 | E9: 687500 | F9: =E9/D9 -> 9166.666667 | G9: kr.
B10: Brønde | C10: 2014 | D10: 75 | E10: 240000 | F10: =E10/D10 -> 3200 | G10: kr.
B11: Stik | C11: 2014 | D11: 75 | E11: 90000 | F11: 1200 | G11: kr.
B12: Ledningsnet = Ø 200 mm | C12: 2014 | D12: 75 | E12: 6000000 | F12: 80000 | G12: kr.
B13: Pumpestationer m. overbygning (< 20 m2), Konstruktioner | C13: 2014 | D13: 50 | E13: 3700000 | F13: 74000 | G13: kr.
B14: Pumpestationer m. overbygning (< 20 m2), Mek/EL | C14: 2014 | D14: 20 | E14: 740000 | F14: 37000 | G14: kr.
B15: Pumpestationer m. overbygning (< 20 m2), SRO | C15: 2014 | D15: 10 | E15: 185000 | F15: 18500 | G15: kr.
B16: Ledningsnet = Ø 200 mm | C16: 2014 | D16: 75 | E16: 52500 | F16: 700 | G16: kr.
B17: Brønde | C17: 2014 | D17: 75 | E17: 1125000 | F17: 15000 | G17: kr.
B18: Stik | C18: 2014 | D18: 75 | E18: 850000 | F18: 11333.33333 | G18: kr.
B19: Tryksatte minipumpestationer (husstandssystemer) | C19: 2014 | D19: 30 | E19: 3600000 | F19: 120000 | G19: kr.
B20: Ledningsnet = Ø 200 mm | C20: 2014 | D20: 75 | E20: 3900000 | F20: 52000 | G20: kr.
B21: Mindre renseanlæg < 5.000 PE uden mulighed for opdeling | C21: 2014 | D21: 40 | E21: 300000 | F21: 7500 | G21: kr.
B22: Ø 200 mm < Ledningsnet = Ø 500 mm | C22: 2014 | D22: 75 | E22: 7400000 | F22: 98666.66667 | G22: kr.
B23: Jordbassin Klasse B | C23: 2014 | D23: 50 | E23: 2400000 | F23: 48000 | G23: kr.
B24: Ledningsnet = Ø 200 mm | C24: 2014 | D24: 75 | E24: 1625000 | F24: 21666.66667 | G24: kr.
B25: Brønde | C25: 2014 | D25: 75 | E25: 225000 | F25: 3000 | G25: kr.
B26: Stik | C26: 2014 | D26: 75 | E26: 170000 | F26: 2266.666667 | G26: kr.
B27: Ledningsnet = Ø 200 mm | C27: 2015 | D27: 75 | E27: 6875000 | F27: 91666.66667 | G27: kr.
B28: Brønde | C28: 2015 | D28: 75 | E28: 2400000 | F28: 32000 | G28: kr.
B29: Stik | C29: 2015 | D29: 75 | E29: 900000 | F29: 12000 | G29: kr.
B30: Ledningsnet = Ø 200 mm | C30: 2015 | D30: 75 | E30: 2000000 | F30: 26666.66667 | G30: kr.
B31: Brønde | C31: 2015 | D31: 75 | E31: 1125000 | F31: 15000 | G31: kr.
B32: Stik | C32: 2015 | D32: 75 | E32: 850000 | F32: 11333.33333 | G32: kr.
B33: Stik | C33: 2015 | D33: 75 | E33: 204000 | F33: 2720 | G33: kr.
B34: Ledningsnet = Ø 200 mm | C34: 2015 | D34: 75 | E34: 6000000 | F34: 80000 | G34: kr.
B35: Tryksatte minipumpestationer (husstandssystemer) | C35: 2015 | D35: 30 | E35: 3600000 | F35: 120000 | G35: kr.
B36: Ledningsnet = Ø 200 mm | C36: 2015 | D36: 75 | E36: 3900000 | F36: 52000 | G36: kr.
B37: Mindre renseanlæg < 5.000 PE uden mulighed for opdeling | C37: 2015 | D37: 40 | E37: 300000 | F37: 7500 | G37: kr.
B38: Ledningsnet = Ø 200 mm | C38: 2015 | D38: 75 | E38: 1625000 | F38: 21666.66667 | G38: kr.
B39: Brønde | C39: 2015 | D39: 75 | E39: 225000 | F39: 3000 | G39: kr.
B40: Stik | C40: 2015 | D40: 75 | E40: 170000 | F40: 2266.666667 | G40: kr.
B41: Oversvømmelseskort | C41: 2015 | D41: 5 | E41: 500000 | F41: 100000 | G41: kr.
B42: Tillæg for 2014 | F42: =SUMIF(C8:C41,"2014",F8:F41) -> 603700 | G42: kr.
B43: Tillæg for 2015 | F43: =SUMIF(C8:C41,"2015",F8:F41) -> 577820 | G43: kr.
B44: Tillæg i alt | F44: =F42+F43 -> 1181520 | G44: kr.

Sheet 8. 1-1 omkostninger
A1: ='7. Planlagte investeringer'!A1 -> Hedensted Spildevand
B4: Fane 8. 1:1 omkostninger
B6: Tillæg for budgetterede 1:1 omkostninger i 2015
B7: Betaling til Forsyningssekretariatet | C7: 33000 | D7: kr.
B8: Spildevandsafgift | C8: 1125000 | D8: kr.
B9: Køb af varer og tjenesteydelser hos et andet prisloftreguleret vandselskab | C9: 121700 | D9: kr.
B10: Ejendomsskatter | C10: 140000 | D10: kr.
B11: Tillæg i alt | C11: =SUM(C7:C10) -> 1419700 | D11: kr.
B16: Tillæg for budgetterede nødvendige udgifter til revisorerklæringer samt ordinært medlemskab af DANVA og FVD i 2015
B17: Betaling for ordinært medlemskab af DANVA/FVD | C17: 115000 | D17: kr.
B18: Betaling for revisorerklæringer | C18: 35000 | D18: kr.
B19: Tillæg i alt | C19: =SUM(C17:C18) -> 150000 | D19: kr.
B22: Korrektion af tillæg for faktiske 1:1 omkostninger (inkl. revisorerklæringer og ordinært medlemskab af DANVA/FVD) i 2013
B23: Selskabets faktiske 1:1 omkostninger mv. i 2013, jf. reguleringsregnskabet | C23: 1274465 | D23: kr.
B24: Tillæg for budgetterede 1:1 omkostninger mv. i prisloft 2013 | C24: 1158000 | D24: kr.
B25: Korrektion af tillæg for budgetterede 1:1 omkostninger mv. i 2013 | C25: =C23-C24 -> 116465 | D25: kr.

Sheet 9. Miljø- og servicemål
A1: ='8. 1-1 omkostninger'!A1 -> Hedensted Spildevand
B4: Fane 9. Driftsomkostninger til miljø- og servicemål
B6: Tillæg for budgetterede driftsomkostninger til miljø- og servicemål i 2015
B7: Rottebekæmpelse | C7: 1450000 | D7: kr.
B8: Svovlbrintebekæmpelse | C8: 665000 | D8: kr.
B9: Tillæg i alt | C9: =SUM(C7:C8) -> 2115000 | D9: kr.
B13: Korrektion af tillæg for faktiske driftsomkostninger til miljø- og servicemål i 2013
B14: Selskabets faktiske driftsomkostninger til miljø- og servicemål i 2013, jf. reguleringsregnskabet | C14: 595852 | D14: kr.
B15: Tillæg for budgetterede driftsomkostninger til miljø- og servicemål i prisloft 2013 | C15: 742501 | D15: kr.
B16: Korrektion af tillæg for budgetterede driftsomkostninger til miljø- og servicemål i 2013 | C16: =C14-C15 -> -146649 | D16: kr.

Sheet 10. Klimatilpasning
A1: ='9. Miljø- og servicemål'!A1 -> Hedensted Spildevand
B4: Fane 10. Medfinansiering af klimatilpasningsprojekter
B7: Tillæg for budgetterede omkostninger til medfinansiering af klimatilpasningsprojekter i 2015
C8: 0 | D8: kr.
B9: Tillæg i alt | C9: =SUM(C8:C8) -> 0 | D9: kr.
B13: Korrektion af tillæg for faktiske omkostninger til medfinansiering af klimatilpasningsprojekter i 2013
B14: Selskabets faktiske driftsomkostninger til klimatilpasningsprojekter i 2013, jf. reguleringsregnskabet | C14: 0 | D14: kr.
B15: Tillæg for budgetterede driftsomkostninger til klimatilpasningsprojekter i prisloft 2013 | C15: 0 | D15: kr.
B16: Korrektion af tillæg for budgetterede omkostninger til klimatilpasningsprojekter i 2013 | C16: =C14-C15 -> 0 | D16: kr.

Sheet 11. Nettofinansielle poster
A1: ='10. Klimatilpasning'!A1 -> Hedensted Spildevand
B4: Fane 11. Nettofinansielle poster
B6: Tillæg for budgetterede nettofinansielle poster i 2015
B7: Budgetterede renteudgifter og gebyrer i 2015 | C7: 2030000 | D7: kr.
B8: Budgetterede renteindtægter i 2015 | C8: 720000 | D8: kr.
B9: Tillæg/fradrag i alt | C9: =C7-C8 -> 1310000 | D9: kr.
B13: Korrektion af tillæg for faktiske nettofinansielle poster i 2013
B14: Selskabets faktiske nettofinansielle poster i 2013, jf. reguleringsregnskabet | C14: 981722 | D14: kr.
B15: Tillæg for budgetterede nettofinansielle poster i prisloft 2013 | C15: 800000 | D15: kr.
B16: Korrektion af tillæg for budgetterede nettofinansielle poster i 2013 | C16: =C14-C15 -> 181722 | D16: kr.

Sheet 12. Over- eller underdækning
A1: ='11. Nettofinansielle poster'!A1 -> Hedensted Spildevand
B4: Fane 12. Over- eller underdækning til og med 2010
B6: Tillæg/fradrag for over- eller underdækning til og med 2010
B7: Opgjort over- eller underdækning per 31. december 2010 | C7: -48174728 | D7: kr.
B8: Heraf beløb indregnet i prislofterne for 2011 - 2014 | C8: -18781116.51 | D8: kr.
B9: Endnu ikke indregnet over- eller underdækning | C9: =C7-C8 -> -29393611.49 | D9: kr.
B10: Resterende indregningsperiode (fastsat i prisloftet for 2012) | C10: 6 | D10: år
B11: Tillæg/fradrag i alt | C11: =IF(C7=0,0,C9/C10) -> -4898935.249 | D11: kr.

Sheet 13. Kontrol med indtægtsrammen
A1: ='12. Over- eller underdækning'!A1 -> Hedensted Spildevand
B4: Fane 13. Korrektion for overholdelse af indtægtsrammen i prisloftet for 2013
B6: Samlet opgørelse vedrørende overholdelse af indtægtsrammen i prisloftet for 2013
B7: Indtægtsramme i prisloftet for 2013 | E7: 83035884.09 | F7: kr.
B8: Ikke anvendt likviditet vedrørende investeringer i 2013
B9: Tillæg for historiske investeringer | C9: 49296498.42 | D9: kr.
B10: Tillæg for gennemførte investeringer i 2011 | C10: 2484648 | D10: kr.
B11: Korrektion af tillæg for planlagte investeringer i 2011 | C11: -460742 | D11: kr.
B12: Tillæg for planlagte investeringer i 2012 og 2013 | C12: 3386315 | D12: kr.
B13: Indtægter fra tilslutningsbidrag | C13: 3689726 | D13: kr.
B14: Indtægter fra salg af anlægsaktiver | C14: 0 | D14: kr.
B15: Erstatninger vedr. anlægsaktiver mv. | C15: 0 | D15: kr.
B16: Ekstraordinær effektiviseringsgevinst anvendt til investeringer | C16: 0 | D16: kr.
B17: Udgifter til investeringer | C17: -30510020 | D17: kr.
B18: Ikke anvendt likviditet vedr. investeringer i alt | C18: =SUM(C9:C17) -> 27886425.42 | D18: kr. | E18: =IF(C18<0,0,-C18) -> -27886425.42 | F18: kr.
B19: Ekstraordinære effektiviseringsgevinster anvendt til takstnedsættelse
B20: Ekstraordinær effektiviseringsgevinst anvendt til takstnedsættelse | C20: 0 | D20: kr. | E20: =-C20 -> 0 | F20: kr.
B21: Korrektion af ikke opkrævet tillæg fra 2011 i prisloft 2013
B22: Korrektion af ikke opkrævet tillæg fra 2011 i prisloft 2013 | C22: 0 | D22: kr. | E22: =-C22 -> 0 | F22: kr.
B23: Indtægter fra primære aktiviteter mv.
B24: Indtægter fra kubikmetertakster, faste takster, særbidrag, målergebyrer samt andre takster og gebyrer | C24: 56857894 | D24: kr.
B25: Andre indtægter i prisloftåret, som selskabet har opnået i forbindelse med eller som følge af selskabets primære aktiviteter | C25: 0 | D25: kr.
B26: Indtægter fra primære aktiviteter mv. i alt | C26: =SUM(C24:C25) -> 56857894 | D26: kr. | E26: =-C26 -> -56857894 | F26: kr.
B27: Tillæg/fradrag i prisloftet for 2015 i alt | E27: =E7+E18+E20+E22+E26 -> -1708435.323 | F27: kr.
B31: Oversigt over ekstraordinære effektiviseringsgevinster
C33: 2012 | E33: 2013 | G33: 2014 | I33: 2015 | K33: 2016
B34: Indhentet ekstraordinær effektiviseringsgevinst | C34: 0 | D34: kr. | E34: 0 | F34: kr. | H34: kr. | J34: kr. | L34: kr.
B35: Gevinst anvendt til investeringer | C35: 0 | D35: kr. | E35: 0 | F35: kr. | H35: kr. | J35: kr. | L35: kr.
B36: Gevinst anvendt til takstnedsættelse | C36: 0 | D36: kr. | E36: 0 | F36: kr. | H36: kr. | J36: kr. | L36: kr.
B37: Korrektion for effektiviseringsgevinst der ikke er anvendt inden 4 år | C37: 0 | D37: kr. | E37: 0 | F37: kr. | H37: kr. | J37: kr. | K37: =IF(C38>SUM(E35:I36),C38-SUM(E35:I36),0)*-1 -> 0 | L37: kr.
B38: Resterende gevinst | C38: =C34-C35-C36 -> 0 | D38: kr. | E38: =C38+E34-E35-E36 -> 0 | F38: kr. | G38: =E38+G34-G35-G36 -> 0 | H38: kr. | I38: 0 | J38: kr. | K38: =K34-K35-K36+K37+I38 -> 0 | L38: kr.
